fUSD/lending_fUSD_20250221
["ID","MTS","AMOUNT","RATE_DAILY","PERIOD"]
[353935952,1740155459566,-404.42771357,0.00013704,2]
[353935953,1740155459576,-404.42771357,0.00013705,2]
[353935954,1740155459585,-300.0,0.00013716,2]
[353935955,1740155459595,-359.85,0.00013719,2]
[353935956,1740155459604,-200.0,0.00013725,2]
[353935957,1740155459613,-1788.5249064,0.00013726,2]
[353935958,1740155459622,-544.4824177,0.00013726,2]
[353935959,1740155459631,-1053.0801205,0.00013726,2]
[353935960,1740155459640,-353.7525926,0.00013726,2]
[353935961,1740155459650,-1013.1657033,0.00013726,2]
[353935962,1740155459659,-618.4067802,0.00013726,2]
[353935963,1740155459668,-215.6040664,0.00013726,2]
[353935964,1740155459677,-190.5107161,0.00013726,2]
[353935965,1740155459687,-151.280257,0.00013726,2]
[353935966,1740155459696,-373.07428265,0.00013726,2]
[353935967,1740155459706,-152.25342162,0.00013727,2]
[353935968,1740155459715,-500.0,0.00013727,2]
[353935969,1740155459723,-500.0,0.00013727,2]
[353935970,1740155459733,-276.99,0.00013728,2]
[353935971,1740155459742,-1051.0,0.00013729,2]
[353935972,1740155459751,-150.0,0.00013732,2]
[353935973,1740155459760,-37937.86661099,0.00013735,2]
[353935974,1740155459769,-283.0,0.00013735,2]
[353935975,1740155459779,-150.0,0.00013737,2]
[353935976,1740155459790,-3597.18192689,0.00013739,2]
[353935977,1740155459801,-3597.18192689,0.00013739,2]
[353935978,1740155459810,-10339.27571952,0.00013741,2]
[353935979,1740155459819,-2704.76148402,0.00013741,2]
[353935980,1740155459830,-200.0,0.00013741,2]
[353935981,1740155459841,-493.31059241,0.00013742,2]
[353935982,1740155459851,-200.0,0.00013743,2]
[353935983,1740155459860,-10339.27571952,0.00013743,2]
[353935984,1740155459870,-215.82139464,0.00013744,2]
[353935985,1740155459880,-200.0,0.00013745,2]
[353935986,1740155459890,-2337.7964726,0.00013745,2]
[353935987,1740155459901,-2026.88973478,0.00013748,2]
[353935988,1740155459911,-200.0,0.0001375,2]
[353935989,1740155459920,-2374.81692429,0.00013752,2]
[353935990,1740155459929,-152.59490338,0.00013753,2]
[353935991,1740155459939,-157.87181462,0.00013753,2]
[353935992,1740155459948,-2704.76148402,0.00013754,2]
[353935993,1740155459958,-2337.7964726,0.00013754,2]
[353935994,1740155459967,-500.0,0.00013754,2]
[353935995,1740155459977,-504.30145883,0.00013754,2]
[353935996,1740155459988,-10111.57884818,0.00013756,2]
[353935997,1740155459997,-10111.57884818,0.00013757,2]
[353935998,1740155460007,-9514.63418343,0.00013757,2]
[353935999,1740155460017,-2026.88973478,0.00013759,2]
[353936000,1740155460027,-662.61245157,0.00013759,2]
[353936001,1740155460036,-75965.45113191,0.00013759,2]
[353936002,1740155460047,-373.07428265,0.00013763,2]
[353936003,1740155460059,-676.6979581,0.00013763,2]
[353936004,1740155460070,-75965.45113191,0.00013765,2]
[353936005,1740155460080,-10339.27571952,0.00013766,2]
[353936006,1740155460090,-55785.97621003,0.00013768,2]
[353936007,1740155460100,-676.6979581,0.0001377,2]
[353936008,1740155460110,-2704.76148402,0.0001377,2]
[353936009,1740155460120,-55785.97621003,0.00013771,2]
[353936010,1740155460129,-58565.8815924,0.00013779,2]
[353936011,1740155460138,-500.0,0.00013779,2]
[353936012,1740155460149,-549.45,0.00013779,2]
[353936013,1740155460158,-22626.01,0.0001378,3]
[353936014,1740155460168,-94274.09806145,0.0001378,2]
[353936015,1740155460178,-200.0,0.0001378,2]
[353936016,1740155460189,-154.91934717,0.00013781,2]
[353936017,1740155460199,-157.87181461,0.00013781,2]
[353936018,1740155460209,-9514.63418343,0.00013781,2]
[353936019,1740155460219,-373.07428265,0.00013781,2]
[353936020,1740155460229,-500.0,0.00013782,2]
[353936021,1740155460238,-2026.88973478,0.00013783,2]
[353936022,1740155460248,-404.42771357,0.00013783,2]
[353936023,1740155460257,-58565.8815924,0.00013786,2]
[353936024,1740155460266,-676.6979581,0.00013786,2]
[353936025,1740155460276,-3597.18192689,0.00013787,2]
[353936026,1740155460286,-2704.76148402,0.00013789,2]
[353936027,1740155460295,-200.0,0.0001379,2]
[353936028,1740155460308,-215.82139464,0.0001379,2]
[353936029,1740155460318,-2374.81692429,0.0001379,2]
[353936030,1740155460327,-493.31059241,0.0001379,2]
[353936031,1740155460336,-2250.5506953,0.00013791,2]
[353936032,1740155460346,-657.5812268,0.00013791,2]
[353936033,1740155460355,-1271.8238368,0.00013791,2]
[353936034,1740155460364,-433.0020033,0.00013791,2]
[353936035,1740155460373,-1240.1401105,0.00013791,2]
[353936036,1740155460382,-756.945335,0.00013791,2]
[353936037,1740155460392,-263.904759,0.00013791,2]
[353936038,1740155460401,-190.5107161,0.00013791,2]
[353936039,1740155460410,-300.0,0.00013791,2]
[353936040,1740155460420,-10111.57884818,0.00013792,2]
[353936041,1740155460429,-151.0,0.00013792,2]
[353936042,1740155460440,-151.0,0.00013792,2]
[353936043,1740155460454,-151.0,0.00013792,2]
[353936044,1740155460469,-151.0,0.00013792,2]
[353936045,1740155460480,-151.0,0.00013792,2]
[353936046,1740155460493,-284.703302,0.00013792,2]
[353936047,1740155460507,-151.0,0.00013792,2]
[353936048,1740155460523,-284.703302,0.00013792,2]
[353936049,1740155460539,-151.0,0.00013792,2]
[353936050,1740155460558,-168.313217,0.00013792,2]
[353936051,1740155460570,-168.313217,0.00013792,2]
[353936052,1740155460582,-1878.82,0.00013792,2]
[353936053,1740155460595,-1878.82,0.00013792,2]
[353936054,1740155460608,-500.0,0.00013793,2]
[353936055,1740155460623,-500.0,0.00013793,2]
[353936056,1740155460639,-1001.72,0.00013793,2]
[353936057,1740155460652,-1001.72,0.00013793,2]
[353936058,1740155460667,-204.623413,0.00013793,2]
[353936059,1740155460681,-151.0,0.00013793,2]
[353936060,1740155460694,-204.623413,0.00013793,2]
[353936061,1740155460707,-151.0,0.00013793,2]
[353936062,1740155460722,-500.0,0.00013793,2]
[353936063,1740155460735,-500.0,0.00013793,2]
[353936064,1740155460749,-151.0,0.00013793,2]
[353936065,1740155460760,-151.0,0.00013793,2]
[353936066,1740155460772,-549.45,0.00013793,2]
[353936067,1740155460788,-549.45,0.00013793,2]
[353936068,1740155460804,-387.1056,0.00013793,2]
[353936069,1740155460815,-151.0,0.00013793,2]
[353936070,1740155460828,-387.1056,0.00013793,2]
[353936071,1740155460843,-1763.114247,0.00013793,2]
[353936072,1740155460855,-154.08237,0.00013793,2]
[353936073,1740155460867,-1763.114247,0.00013793,2]
[353936074,1740155460879,-154.08237,0.00013793,2]
[353936075,1740155460891,-301.138896,0.00013793,2]
[353936076,1740155460903,-301.138896,0.00013793,2]
[353936077,1740155460915,-440.386019,0.00013793,2]
[353936078,1740155460927,-440.386019,0.00013793,2]
[353936079,1740155460939,-151.0,0.00013793,2]
[353936080,1740155460950,-1878.82,0.00013793,2]
[353936081,1740155460963,-1878.82,0.00013793,2]
[353936082,1740155460975,-300.0,0.00013793,2]
[353936083,1740155460986,-300.0,0.00013793,2]
[353936084,1740155460998,-493.31059241,0.00013794,2]
[353936085,1740155461011,-662.61245157,0.00013794,2]
[353936086,1740155461023,-500258.78227009,0.00013794,2]
[353936087,1740155461036,-151.0,0.00013794,2]
[353936088,1740155461048,-151.0,0.00013794,2]
[353936089,1740155461063,-151.0,0.00013794,2]
[353936090,1740155461075,-151.0,0.00013794,2]
[353936091,1740155461089,-151.0,0.00013794,2]
[353936092,1740155461101,-151.0,0.00013794,2]
[353936093,1740155461113,-151.0,0.00013794,2]
[353936094,1740155461125,-151.0,0.00013794,2]
[353936095,1740155461137,-151.0,0.00013794,2]
[353936096,1740155461148,-170.290337,0.00013794,2]
[353936097,1740155461160,-151.0,0.00013794,2]
[353936098,1740155461171,-151.0,0.00013794,2]
[353936099,1740155461183,-1540.637417,0.00013794,2]
[353936100,1740155461195,-1540.637417,0.00013794,2]
[353936101,1740155461206,-151.0,0.00013794,2]
[353936102,1740155461217,-365.151209,0.00013794,2]
[353936103,1740155461228,-151.0,0.00013794,2]
[353936104,1740155461239,-151.0,0.00013794,2]
[353936105,1740155461250,-151.0,0.00013794,2]
[353936106,1740155461261,-178.144144,0.00013794,2]
[353936107,1740155461271,-151.0,0.00013794,2]
[353936108,1740155461283,-151.0,0.00013794,2]
[353936109,1740155461294,-151.0,0.00013794,2]
[353936110,1740155461307,-151.0,0.00013794,2]
[353936111,1740155461320,-151.0,0.00013794,2]
[353936112,1740155461331,-151.0,0.00013794,2]
[353936113,1740155461343,-365.151209,0.00013794,2]
[353936114,1740155461355,-151.0,0.00013794,2]
[353936115,1740155461366,-151.0,0.00013794,2]
[353936116,1740155461378,-151.0,0.00013794,2]
[353936117,1740155461389,-151.0,0.00013794,2]
[353936118,1740155461401,-151.0,0.00013794,2]
[353936119,1740155461412,-151.0,0.00013794,2]
[353936120,1740155461423,-151.0,0.00013794,2]
[353936121,1740155461434,-151.0,0.00013794,2]
[353936122,1740155461444,-151.0,0.00013794,2]
[353936123,1740155461455,-151.0,0.00013794,2]
[353936124,1740155461466,-151.0,0.00013794,2]
[353936125,1740155461476,-151.0,0.00013794,2]
[353936126,1740155461487,-151.0,0.00013794,2]
[353936127,1740155461498,-151.0,0.00013794,2]
[353936128,1740155461509,-151.0,0.00013794,2]
[353936129,1740155461519,-151.0,0.00013794,2]
[353936130,1740155461533,-151.0,0.00013794,2]
[353936131,1740155461543,-151.0,0.00013794,2]
[353936132,1740155461556,-151.0,0.00013794,2]
[353936133,1740155461567,-151.0,0.00013794,2]
[353936134,1740155461577,-151.0,0.00013794,2]
[353936135,1740155461588,-151.0,0.00013794,2]
[353936136,1740155461598,-151.0,0.00013794,2]
[353936137,1740155461609,-151.0,0.00013794,2]
[353936138,1740155461620,-151.0,0.00013794,2]
[353936139,1740155461637,-151.0,0.00013794,2]
[353936140,1740155461649,-151.0,0.00013794,2]
[353936141,1740155461660,-151.0,0.00013794,2]
[353936142,1740155461671,-151.0,0.00013794,2]
[353936143,1740155461682,-151.0,0.00013794,2]
[353936144,1740155461692,-151.0,0.00013794,2]
[353936145,1740155461703,-151.0,0.00013794,2]
[353936146,1740155461714,-151.0,0.00013794,2]
[353936147,1740155461725,-151.0,0.00013794,2]
[353936148,1740155461735,-151.0,0.00013794,2]
[353936149,1740155461746,-151.0,0.00013794,2]
[353936150,1740155461756,-151.0,0.00013794,2]
[353936151,1740155461767,-151.0,0.00013794,2]
[353936152,1740155461778,-151.0,0.00013794,2]
[353936153,1740155461790,-151.0,0.00013794,2]
[353936154,1740155461802,-151.0,0.00013794,2]
[353936155,1740155461813,-151.0,0.00013794,2]
[353936156,1740155461824,-151.0,0.00013794,2]
[353936157,1740155461836,-151.0,0.00013794,2]
[353936158,1740155461847,-151.0,0.00013794,2]
[353936159,1740155461859,-151.0,0.00013794,2]
[353936160,1740155461878,-151.0,0.00013794,2]
[353936161,1740155461890,-151.0,0.00013794,2]
[353936162,1740155461903,-151.0,0.00013794,2]
[353936163,1740155461913,-151.0,0.00013794,2]
[353936164,1740155461925,-151.0,0.00013794,2]
[353936165,1740155461937,-151.0,0.00013794,2]
[353936166,1740155461949,-151.0,0.00013794,2]
[353936167,1740155461960,-294.126128,0.00013794,2]
[353936168,1740155461972,-151.0,0.00013794,2]
[353936169,1740155461984,-151.0,0.00013794,2]
[353936170,1740155461995,-151.0,0.00013794,2]
[353936171,1740155462007,-204.623413,0.00013794,2]
[353936172,1740155462019,-151.0,0.00013794,2]
[353936173,1740155462030,-204.623413,0.00013794,2]
[353936174,1740155462041,-250.177577,0.00013794,2]
[353936175,1740155462054,-151.0,0.00013794,2]
[353936176,1740155462065,-151.0,0.00013794,2]
[353936177,1740155462076,-387.1056,0.00013794,2]
[353936178,1740155462087,-151.0,0.00013794,2]
[353936179,1740155462098,-387.1056,0.00013794,2]
[353936180,1740155462109,-151.0,0.00013794,2]
[353936181,1740155462120,-151.0,0.00013794,2]
[353936182,1740155462131,-151.0,0.00013794,2]
[353936183,1740155462142,-1763.114247,0.00013794,2]
[353936184,1740155462153,-151.0,0.00013794,2]
[353936185,1740155462164,-154.08237,0.00013794,2]
[353936186,1740155462175,-1763.114247,0.00013794,2]
[353936187,1740155462186,-154.08237,0.00013794,2]
[353936188,1740155462197,-301.138896,0.00013794,2]
[353936189,1740155462208,-301.138896,0.00013794,2]
[353936190,1740155462219,-284.703302,0.00013794,2]
[353936191,1740155462230,-151.0,0.00013794,2]
[353936192,1740155462241,-284.703302,0.00013794,2]
[353936193,1740155462251,-440.386019,0.00013794,2]
[353936194,1740155462263,-151.0,0.00013794,2]
[353936195,1740155462274,-440.386019,0.00013794,2]
[353936196,1740155462286,-151.0,0.00013794,2]
[353936197,1740155462296,-168.313217,0.00013794,2]
[353936198,1740155462311,-151.0,0.00013794,2]
[353936199,1740155462321,-168.313217,0.00013794,2]
[353936200,1740155462332,-151.0,0.00013794,2]
[353936201,1740155462343,-252.996345,0.00013794,2]
[353936202,1740155462620,-151.0,0.00013794,2]
[353936203,1740155462629,-178.023001,0.00013794,2]
[353936204,1740155462639,-151.0,0.00013794,2]
[353936205,1740155462648,-151.0,0.00013794,2]
[353936206,1740155462656,-335.289432,0.00013794,2]
[353936207,1740155462665,-151.0,0.00013794,2]
[353936208,1740155462674,-335.289432,0.00013794,2]
[353936209,1740155462683,-151.0,0.00013794,2]
[353936210,1740155462692,-151.0,0.00013794,2]
[353936211,1740155462701,-415.309633,0.00013794,2]
[353936212,1740155462710,-1683.523139,0.00013794,2]
[353936213,1740155462719,-415.309633,0.00013794,2]
[353936214,1740155462728,-1683.523139,0.00013794,2]
[353936215,1740155462738,-151.0,0.00013794,2]
[353936216,1740155462747,-151.0,0.00013794,2]
[353936217,1740155462756,-151.0,0.00013794,2]
[353936218,1740155462765,-151.0,0.00013794,2]
[353936219,1740155462774,-151.0,0.00013794,2]
[353936220,1740155462783,-171.384245,0.00013794,2]
[353936221,1740155462793,-171.384245,0.00013794,2]
[353936222,1740155462804,-305.837602,0.00013794,2]
[353936223,1740155462813,-305.837602,0.00013794,2]
[353936224,1740155462822,-151.0,0.00013794,2]
[353936225,1740155462831,-151.0,0.00013794,2]
[353936226,1740155462841,-151.0,0.00013794,2]
[353936227,1740155462850,-151.0,0.00013794,2]
[353936228,1740155462859,-151.0,0.00013794,2]
[353936229,1740155462867,-151.0,0.00013794,2]
[353936230,1740155462876,-151.0,0.00013794,2]
[353936231,1740155462886,-160.25223,0.00013794,2]
[353936232,1740155462895,-1036.614524,0.00013794,2]
[353936233,1740155462904,-493.31059241,0.00013795,2]
[353936234,1740155462915,-404.42771357,0.00013798,2]
[353936235,1740155462924,-495.0,0.00013798,2]
[353936236,1740155462933,-1878.82,0.00013798,2]
[353936237,1740155462942,-500.0,0.00013799,2]
[353936238,1740155462951,-500.0,0.00013799,2]
[353936239,1740155462960,-500.0,0.00013799,2]
[353936240,1740155462969,-500.0,0.00013799,2]
[353936241,1740155462978,-459.88,0.00013799,2]
[353936242,1740155462987,-300.0,0.00013799,2]
[353936243,1740155462996,-1001.72,0.00013799,2]
[353936244,1740155463005,-1001.72,0.00013799,2]
[353936245,1740155463014,-1001.72,0.00013799,2]
[353936246,1740155463023,-1001.72,0.00013799,2]
[353936247,1740155463033,-1001.72,0.00013799,2]
[353936248,1740155463043,-1001.72,0.00013799,2]
[353936249,1740155463055,-1001.72,0.00013799,2]
[353936250,1740155463065,-1001.72,0.00013799,2]
[353936251,1740155463074,-1001.72,0.00013799,2]
[353936252,1740155463084,-1001.72,0.00013799,2]
[353936253,1740155463094,-1001.72,0.00013799,2]
[353936254,1740155463104,-1001.72,0.00013799,2]
[353936255,1740155463113,-1001.72,0.00013799,2]
[353936256,1740155463123,-1001.72,0.00013799,2]
[353936257,1740155463133,-1001.72,0.00013799,2]
[353936258,1740155463142,-1001.87342562,0.00013799,2]
[353936259,1740155463152,-500.0,0.00013799,2]
[353936260,1740155463161,-500.0,0.00013799,2]
[353936261,1740155463171,-500.0,0.00013799,2]
[353936262,1740155463181,-500.0,0.00013799,2]
[353936263,1740155463191,-500.0,0.00013799,2]
[353936264,1740155463201,-500.0,0.00013799,2]
[353936265,1740155463211,-500.0,0.00013799,2]
[353936266,1740155463221,-500.0,0.00013799,2]
[353936267,1740155463230,-500.0,0.00013799,2]
[353936268,1740155463240,-635.31,0.00013799,2]
[353936269,1740155463249,-549.45,0.00013799,2]
[353936270,1740155463259,-549.45,0.00013799,2]
[353936271,1740155463269,-549.45,0.00013799,2]
[353936272,1740155463279,-549.45,0.00013799,2]
[353936273,1740155463289,-549.45,0.00013799,2]
[353936274,1740155463299,-549.45,0.00013799,2]
[353936275,1740155463311,-549.45,0.00013799,2]
[353936276,1740155463320,-549.45,0.00013799,2]
[353936277,1740155463330,-549.45,0.00013799,2]
[353936278,1740155463339,-549.45,0.00013799,2]
[353936279,1740155463349,-549.45,0.00013799,2]
[353936280,1740155463358,-549.45,0.00013799,2]
[353936281,1740155463367,-549.45,0.00013799,2]
[353936282,1740155463378,-549.45,0.00013799,2]
[353936283,1740155463387,-549.45,0.00013799,2]
[353936284,1740155463396,-549.45,0.00013799,2]
[353936285,1740155463406,-549.45,0.00013799,2]
[353936286,1740155463416,-549.477,0.00013799,2]
[353936287,1740155463426,-500.0,0.00013799,2]
[353936288,1740155463435,-300.0,0.00013799,2]
[353936289,1740155463447,-1878.82,0.00013799,2]
[353936290,1740155463456,-1878.82,0.00013799,2]
[353936291,1740155463466,-1878.82,0.00013799,2]
[353936292,1740155463475,-1878.82,0.00013799,2]
[353936293,1740155463485,-1878.82,0.00013799,2]
[353936294,1740155463494,-1878.82,0.00013799,2]
[353936295,1740155463503,-1878.82,0.00013799,2]
[353936296,1740155463513,-1878.82,0.00013799,2]
[353936297,1740155463522,-1878.82,0.00013799,2]
[353936298,1740155463531,-1878.82,0.00013799,2]
[353936299,1740155463541,-1878.82,0.00013799,2]
[353936300,1740155463550,-1878.82,0.00013799,2]
[353936301,1740155463563,-1878.82,0.00013799,2]
[353936302,1740155463572,-1878.82,0.00013799,2]
[353936303,1740155463582,-1878.91269969,0.00013799,2]
[353936304,1740155463591,-94274.09806145,0.000138,2]
[353936305,1740155463600,-5000.0,0.000138,2]
[353936306,1740155463610,-2566141.23366713,0.000138,2]
[353936307,1740155464798,-150.0,0.00012444,2]
[353936308,1740155464808,-150.0,0.00012984,2]
[353936309,1740155464817,-150.0,0.00013133,2]
[353936310,1740155464827,-150.0,0.00013416,2]
[353936311,1740155464836,-500.0,0.00013424,2]
[353936312,1740155464845,-500.0,0.00013424,2]
[353936313,1740155464854,-1220.66,0.00013424,2]
[353936314,1740155464864,-500.0,0.00013424,2]
[353936315,1740155464874,-500.0,0.00013424,2]
[353936316,1740155464884,-500.0,0.00013424,2]
[353936317,1740155464894,-156.409962,0.00013671,2]
[353936318,1740155464903,-1036.614524,0.00013671,2]
[353936319,1740155464913,-500.0,0.00013696,2]
[353936320,1740155464922,-500.0,0.00013698,2]
[353936321,1740155464931,-1220.66,0.00013698,2]
[353936322,1740155464940,-500.0,0.00013698,2]
[353936323,1740155464949,-1036.614524,0.00013698,2]
[353936324,1740155464962,-500.0,0.00013698,2]
[353936325,1740155464971,-1036.614524,0.00013699,2]
[353936326,1740155464980,-16155.46040536,0.000138,2]
[353936327,1740155465989,-500.0,0.00013424,2]
[353936328,1740155465999,-159.87420028,0.00013424,2]
[353936329,1740155466010,-340.12579972,0.00013424,2]
[353936330,1740155466019,-500.0,0.00013424,2]
[353936331,1740155466028,-500.0,0.00013424,2]
[353936332,1740155466037,-189.29071506,0.00013696,2]
[353936333,1740155466055,-310.70928494,0.00013696,2]
[353936334,1740155466065,-500.0,0.00013698,2]
[353936335,1740155466074,-500.0,0.00013698,2]
[353936336,1740155466083,-500.0,0.00013698,2]
[353936337,1740155466091,-500.0,0.00013698,2]
[353936338,1740155466101,-1036.614524,0.00013794,2]
[353936339,1740155466110,-46057.4638141,0.000138,2]
[353936341,1740155590115,365.83,8.767e-05,2]
[353936342,1740155703454,1861.8629606,0.0002,120]
[353936345,1740155842779,365.91,0.00013424,30]
[353936346,1740156500888,159.35,9.389e-05,2]
[353936360,1740156631431,-719.15,9.942e-05,2]
[353936361,1740156631441,-150.0,9.979e-05,2]
[353936362,1740156631450,-150.0,0.00010376,2]
[353936363,1740156631459,-210.15775834,0.00010636,2]
[353936364,1740156631468,-150.0,0.00010936,2]
[353936365,1740156631477,-707.6490004,0.00011534,2]
[353936366,1740156631486,-200.0,0.00011627,2]
[353936367,1740156631495,-707.64900039,0.00011629,2]
[353936368,1740156631504,-3819.65,0.00011634,2]
[353936369,1740156631514,-150.0,0.00011729,2]
[353936370,1740156631523,-299.13,0.00011808,2]
[353936371,1740156631532,-157.86,0.00011851,2]
[353936372,1740156631541,-210.15775834,0.00011955,2]
[353936373,1740156631550,-250.0,0.00011971,2]
[353936374,1740156631560,-653.92094251,0.00011975,2]
[353936375,1740156631619,-23246.07905749,0.00011975,2]
[353936376,1740156631629,-1000.0,0.00012055,2]
[353936377,1740156631638,-218.73,0.00012059,2]
[353936378,1740156631647,-508.95,0.00012106,2]
[353936379,1740156631657,-220.0,0.00012175,2]
[353936380,1740156631666,-719.15,0.00012206,2]
[353936381,1740156631676,-150.0,0.00012403,2]
[353936382,1740156631685,-150.0,0.00012403,2]
[353936383,1740156631694,-150.0,0.00012403,2]
[353936384,1740156631704,-504.65,0.00012584,2]
[353936385,1740156631713,-1000.0,0.00012714,2]
[353936386,1740156631723,-242.0,0.00012723,2]
[353936387,1740156631732,-150.0,0.00012938,2]
[353936388,1740156631741,-150.0,0.00013013,2]
[353936389,1740156631750,-150.0,0.00013041,2]
[353936390,1740156631760,-500.0,0.00013044,2]
[353936391,1740156631769,-150.0,0.00013044,2]
[353936392,1740156631778,-1000.0,0.00013212,2]
[353936393,1740156631787,-150.0,0.00013251,2]
[353936394,1740156631796,-266.2,0.00013271,2]
[353936395,1740156631805,-299.13,0.00013284,2]
[353936398,1740156632022,-923.57410509,0.00013323,2]
[353936400,1740156632031,-189.90162194,0.00013324,2]
[353936402,1740156632041,-3900.35700471,0.00013324,2]
[353936404,1740156632050,-169.86307901,0.00013324,2]
[353936406,1740156632059,-310.08130264,0.00013324,2]
[353936408,1740156632068,-201.1123,0.00013324,2]
[353936410,1740156632077,-8180.0192,0.00013324,2]
[353936411,1740156632088,-2185.5286,0.00013324,2]
[353936412,1740156632098,-373.9492,0.00013324,2]
[353936413,1740156632107,-4284.9917,0.00013324,2]
[353936414,1740156632117,-172.52442918,0.00013423,2]
[353936415,1740156632127,-610.99440902,0.00013424,2]
[353936416,1740156632136,-510.83455777,0.00013424,2]
[353936417,1740156632146,-500.0,0.00013424,2]
[353936418,1740156632157,-327.2083,0.00013424,2]
[353936419,1740156632167,-277.92203076,0.00013424,2]
[353936420,1740156632177,-500.0,0.00013424,2]
[353936421,1740156632186,-500.0,0.00013424,2]
[353936422,1740156632196,-500.0,0.00013424,2]
[353936423,1740156632205,-181.42906056,0.00013424,2]
[353936424,1740156632216,-449.89855044,0.00013424,2]
[353936425,1740156632228,-50.10144956,0.00013424,2]
[353936426,1740156632240,-489.79748969,0.00013424,2]
[353936427,1740156632381,-10.20251031,0.00013424,2]
[353936428,1740156632390,-503.82322878,0.00013424,2]
[353936429,1740156632399,-500.0,0.00013424,2]
[353936430,1740156632409,-222.30421584,0.00013424,2]
[353936431,1740156632418,-300.0,0.00013424,2]
[353936432,1740156632428,-500.0,0.00013424,2]
[353936433,1740156632437,-500.0,0.00013424,2]
[353936434,1740156632447,-500.0,0.00013424,2]
[353936435,1740156632457,-500.0,0.00013424,2]
[353936436,1740156632466,-500.0,0.00013424,2]
[353936437,1740156632475,-500.0,0.00013424,2]
[353936438,1740156632485,-415.85060618,0.00013424,2]
[353936439,1740156632494,-500.0,0.00013424,2]
[353936440,1740156632504,-500.0,0.00013424,2]
[353936441,1740156632513,-500.0,0.00013424,2]
[353936442,1740156632523,-372.87309936,0.00013424,2]
[353936443,1740156632532,-500.0,0.00013424,2]
[353936444,1740156632542,-500.0,0.00013424,2]
[353936445,1740156632551,-531.30231892,0.00013424,2]
[353936446,1740156632561,-500.38925308,0.00013424,2]
[353936447,1740156632570,-500.0,0.00013424,2]
[353936448,1740156632582,-500.0,0.00013424,2]
[353936449,1740156632591,-500.0,0.00013424,2]
[353936450,1740156632601,-500.0,0.00013424,2]
[353936451,1740156632610,-500.0,0.00013424,2]
[353936452,1740156632620,-1455.106913,0.00013424,2]
[353936453,1740156632629,-500.0,0.00013424,2]
[353936454,1740156632638,-500.0,0.00013424,2]
[353936455,1740156632648,-500.44121385,0.00013424,2]
[353936456,1740156632657,-168.769978,0.00013424,2]
[353936457,1740156632667,-393.51967789,0.00013424,2]
[353936458,1740156632676,-500.0,0.00013424,2]
[353936459,1740156632686,-500.0,0.00013424,2]
[353936460,1740156632695,-156.76527,0.00013424,2]
[353936461,1740156632704,-500.0,0.00013424,2]
[353936462,1740156632713,-550.49362388,0.00013424,2]
[353936463,1740156632722,-500.0,0.00013424,2]
[353936464,1740156632732,-500.0,0.00013424,2]
[353936465,1740156632741,-500.0,0.00013424,2]
[353936466,1740156632751,-500.0,0.00013424,2]
[353936467,1740156632760,-500.0,0.00013424,2]
[353936468,1740156632770,-500.48395199,0.00013424,2]
[353936469,1740156632779,-500.0,0.00013424,2]
[353936470,1740156632788,-500.0,0.00013424,2]
[353936471,1740156632797,-500.0,0.00013424,2]
[353936472,1740156632806,-1342.509906,0.00013424,2]
[353936473,1740156632815,-500.0,0.00013424,2]
[353936474,1740156632824,-500.0,0.00013424,2]
[353936475,1740156632835,-500.0,0.00013424,2]